bitfinex/quotes_BTCUSD_20250711
["timestamp","ask_amount","ask_price","bid_price","bid_amount"]
[1752225143630,0.34,117980.0,117970.0,0.29607728]
[1752225145033,0.34,117980.0,117970.0,0.29807728]
[1752225145237,0.34,117980.0,117970.0,0.29907728]
[1752225145780,0.34,117980.0,117970.0,0.22299993]
[1752225145973,0.34211,117980.0,117970.0,0.22299993]
[1752225146812,0.74211,117980.0,117970.0,0.22299993]
[1752225147666,0.78841,117980.0,117970.0,0.08842993]
[1752225147980,0.78841,117980.0,117970.0,0.21774993]
[1752225149969,0.78841,117980.0,117970.0,0.29382452]
[1752225152034,0.79146,117980.0,117970.0,0.29382452]
[1752225152289,0.79146,117980.0,117970.0,0.07907459]
[1752225152502,0.79146,117980.0,117960.0,0.10664037]
[1752225152503,0.0468,117970.0,117960.0,0.10664037]
[1752225152704,0.05196,117970.0,117960.0,0.23596037]
[1752225152890,0.05196,117970.0,117960.0,0.12932]
[1752225153124,0.79196,117970.0,117960.0,0.12932]
[1752225153973,0.79196,117970.0,117960.0,0.003]
[1752225154193,0.79196,117970.0,117960.0,0.13432]
[1752225155862,0.817385,117970.0,117960.0,0.13432]
[1752225157186,0.817385,117970.0,117960.0,0.005]
[1752225160347,0.946705,117970.0,117960.0,0.005]
[1752225160937,0.96124585,117970.0,117960.0,0.005]
[1752225162370,0.83192585,117970.0,117960.0,0.005]
[1752225162566,0.96124585,117970.0,117960.0,0.005]
[1752225163538,0.56124585,117970.0,117960.0,0.005]
[1752225163980,0.43192585,117970.0,117960.0,0.005]
[1752225164178,0.56124585,117970.0,117960.0,0.005]
[1752225167517,0.96124585,117970.0,117960.0,0.005]
[1752225171228,0.56124585,117970.0,117960.0,0.005]
[1752225171781,0.370585,117970.0,117960.0,0.005]
[1752225171984,0.367535,117970.0,117960.0,0.005]
[1752225172313,0.367536,117970.0,117960.0,0.005]
[1752225172632,0.34211,117970.0,117960.0,0.005]
[1752225173486,0.367537,117970.0,117960.0,0.005]
[1752225174242,0.34211,117970.0,117960.0,0.005]
[1752225181173,0.367536,117970.0,117960.0,0.005]
[1752225182278,0.389036,117970.0,117960.0,0.005]
[1752225183144,0.367536,117970.0,117960.0,0.005]
[1752225184724,0.393876,117970.0,117960.0,0.005]
[1752225185075,0.416176,117970.0,117960.0,0.005]
[1752225187355,0.545496,117970.0,117960.0,0.005]
[1752225188664,0.392876,117970.0,117960.0,0.005]
[1752225188838,0.496856,117970.0,117960.0,0.005]
[1752225189265,0.499896,117970.0,117960.0,0.005]
[1752225190750,0.370576,117970.0,117960.0,0.005]
[1752225193027,0.367536,117970.0,117960.0,0.005]
[1752225193228,0.496856,117970.0,117960.0,0.00702]
[1752225193397,0.496856,117970.0,117960.0,0.005]
[1752225193594,0.499896,117970.0,117960.0,0.005]
[1752225194828,0.521796,117970.0,117960.0,0.005]
[1752225196104,0.544196,117970.0,117960.0,0.005]
[1752225203397,0.521796,117970.0,117960.0,0.005]
[1752225203575,0.55873685,117970.0,117960.0,0.005]
[1752225211599,0.42941685,117970.0,117960.0,0.005]
[1752225211716,0.55869685,117970.0,117960.0,0.005]
[1752225214077,0.53629685,117970.0,117960.0,0.005]
[1752225214374,0.55909685,117970.0,117960.0,0.005]
[1752225216190,0.42981685,117970.0,117960.0,0.005]
[1752225216328,0.55909685,117970.0,117960.0,0.005]
[1752225217031,0.53629685,117970.0,117960.0,0.005]
[1752225217498,0.55779685,117970.0,117960.0,0.005]
[1752225220298,0.53629685,117970.0,117960.0,0.005]
[1752225225460,0.55809685,117970.0,117960.0,0.005]
[1752225225662,0.34,117960.0,117940.0,0.04726]
[1752225225864,0.00204,117950.0,117940.0,0.00213]
[1752225226069,0.51278,117960.0,117940.0,0.00519]
[1752225226398,0.494709,117960.0,117940.0,0.04859]
[1752225226846,0.494709,117960.0,117940.0,0.05259]
[1752225227360,0.894709,117960.0,117940.0,0.05259]
[1752225227763,0.765429,117960.0,117940.0,0.04953]
[1752225227926,0.894709,117960.0,117950.0,0.00306]
[1752225228127,0.896689,117960.0,117950.0,0.00519]
[1752225229352,0.896689,117960.0,117950.0,0.00619]
[1752225229555,0.896689,117960.0,117950.0,0.00819]
[1752225230256,0.767409,117960.0,117950.0,0.00819]
[1752225230979,0.025429,117960.0,117950.0,0.05359]
[1752225231198,0.365429,117960.0,117950.0,0.05359]
[1752225231560,0.34,117960.0,117950.0,0.05359]
[1752225233755,0.34,117960.0,117950.0,0.00819]
[1752225235517,0.74,117960.0,117950.0,0.00819]
[1752225235718,0.74,117960.0,117950.0,0.05339]
[1752225240046,0.74,117960.0,117950.0,0.05239]
[1752225240483,0.74,117960.0,117950.0,0.05339]
[1752225240695,0.74,117960.0,117950.0,0.05139]
[1752225240870,0.74,117960.0,117950.0,0.00619]
[1752225242426,0.74,117960.0,117950.0,0.00719]
[1752225243747,0.74198,117960.0,117950.0,0.00719]
[1752225248598,0.74198,117960.0,117950.0,0.002]
[1752225248806,0.76338,117960.0,117950.0,0.002]
[1752225248977,0.78578,117960.0,117950.0,0.002]
[1752225249383,0.74198,117960.0,117950.0,0.002]
[1752225251494,0.76418,117960.0,117950.0,0.002]
[1752225251860,0.78957,117960.0,117950.0,0.002]
[1752225252402,0.814999,117960.0,117950.0,0.002]
[1752225253856,0.944239,117960.0,117950.0,0.002]
[1752225257001,0.027409,117960.0,117950.0,0.00506]
[1752225257199,0.367409,117960.0,117950.0,0.00713]
[1752225257416,0.34198,117960.0,117950.0,0.00713]
[1752225257617,0.74198,117960.0,117950.0,0.00713]
[1752225261905,0.069529,117970.0,117950.0,0.00713]
[1752225262061,0.025429,117970.0,117960.0,0.00306]
[1752225262278,0.04195985,117970.0,117960.0,0.00306]
[1752225262487,0.44195985,117970.0,117960.0,0.00306]
[1752225263006,0.34,117960.0,117950.0,0.04916]
[1752225263217,0.34,117960.0,117950.0,0.05123]
[1752225265176,0.34,117960.0,117950.0,0.05223]
[1752225265499,0.03996985,117970.0,117950.0,0.05123]
[1752225265701,0.08636985,117970.0,117950.0,0.00613]
[1752225265908,0.34,117960.0,117950.0,0.00613]
[1752225266513,0.34,117960.0,117950.0,0.00513]
[1752225266728,0.34,117960.0,117950.0,0.00613]
[1752225266927,0.34,117960.0,117950.0,0.00713]
[1752225267148,0.34,117960.0,117950.0,0.00613]
[1752225268492,0.34,117960.0,117950.0,0.00713]
[1752225269202,0.34,117960.0,117950.0,0.05083]
[1752225270152,0.34,117960.0,117950.0,0.04983]
[1752225270346,0.34,117960.0,117950.0,0.05083]
[1752225270549,0.048429,117970.0,117950.0,0.05083]
[1752225270919,0.74,117960.0,117950.0,0.05083]
[1752225271339,0.74,117960.0,117950.0,0.00613]
[1752225271711,0.74,117960.0,117950.0,0.00713]
[1752225273122,0.74,117960.0,117950.0,0.00613]
[1752225273404,0.74,117960.0,117950.0,0.00713]
[1752225275820,0.74,117960.0,117950.0,0.02893]
[1752225276036,0.34,117960.0,117950.0,0.05153]
[1752225276757,0.34,117960.0,117950.0,0.13695993]
[1752225281985,0.34,117960.0,117950.0,0.11515993]
[1752225282201,0.34,117960.0,117950.0,0.09255993]
[1752225288121,0.34198,117960.0,117950.0,0.09255993]
[1752225288303,0.34,117960.0,117950.0,0.09255993]
[1752225296432,0.34,117960.0,117950.0,0.13665993]
[1752225297245,0.4,117970.0,117960.0,0.0442]
[1752225297454,0.08866848,117990.0,117960.0,0.26405993]
[1752225297455,0.07412763,117990.0,117960.0,0.26405993]
[1752225297669,0.09954963,117990.0,117960.0,0.26081993]
[1752225297879,0.4,117980.0,117970.0,0.00324]
[1752225298076,0.4,117980.0,117970.0,0.13244]
[1752225298314,0.4,117980.0,117970.0,0.18013]
[1752225298625,0.74,117980.0,117970.0,0.18013]
[1752225299301,0.74,117980.0,117970.0,0.13443]
[1752225299519,0.742,117980.0,117970.0,0.13443]
[1752225300014,0.742,117980.0,117970.0,0.17803]
[1752225301108,0.742,117980.0,117970.0,0.15633]
[1752225301317,0.742,117980.0,117970.0,0.13443]
[1752225301951,0.74507,117980.0,117970.0,0.13187892]
[1752225304362,0.343,117980.0,117970.0,0.26220885]
[1752225307132,0.342,117980.0,117970.0,0.26220885]
[1752225307350,0.342,117980.0,117970.0,0.26216885]
[1752225308529,0.342,117980.0,117970.0,0.21726885]
[1752225308669,0.34207,117980.0,117970.0,0.21726885]
[1752225310852,0.34207,117980.0,117970.0,0.21826885]
[1752225313841,0.34207,117980.0,117970.0,0.21926885]
[1752225314283,0.34,117980.0,117970.0,0.21926885]
[1752225314504,0.34,117980.0,117970.0,0.26496885]
[1752225314972,0.34,117980.0,117970.0,0.21926885]
[1752225315437,0.34207,117980.0,117970.0,0.09010885]
[1752225315659,0.38897,117980.0,117970.0,0.08742993]
[1752225315882,0.38897,117980.0,117970.0,0.002]
[1752225316066,0.38897,117980.0,117970.0,0.13116]
[1752225322306,0.34,117980.0,117970.0,0.17929]
[1752225322509,0.33007536,117980.0,117970.0,0.26471993]
[1752225324589,0.03162763,117990.0,117980.0,0.0452]
[1752225324821,0.0217,118000.0,117980.0,0.05013]
[1752225324980,0.4217,118000.0,117990.0,0.12912]
[1752225325186,0.42692,118000.0,117990.0,0.12912]
[1752225326448,0.42692,118000.0,117980.0,0.04817]
[1752225326704,0.34,117990.0,117980.0,0.04817]
[1752225326863,0.34,117990.0,117980.0,0.17925]
[1752225327068,0.34,117990.0,117980.0,0.34071247]
[1752225327680,0.472519,118010.0,117980.0,0.34071247]
[1752225328062,0.472519,118010.0,117990.0,0.00297]
[1752225328261,0.812519,118010.0,118000.0,0.12912]
[1752225328462,0.414639,118010.0,118000.0,0.12912]
[1752225328611,0.43239728,118010.0,118000.0,0.12912]
[1752225328970,0.40697828,118010.0,118000.0,0.12912]
[1752225329278,0.34,118000.0,117990.0,0.04231892]
[1752225329479,0.34,118000.0,117990.0,0.12970885]
[1752225330154,0.42285828,118010.0,117990.0,0.12970885]
[1752225330386,0.41975828,118010.0,118000.0,0.34366993]
[1752225330584,0.75775828,118010.0,118000.0,0.39072993]
[1752225331237,0.35775828,118010.0,118000.0,0.39369993]
[1752225331778,0.35875828,118010.0,118000.0,0.39369993]
[1752225333052,0.341,118010.0,118000.0,0.39369993]
[1752225333253,0.001,118010.0,118000.0,0.39369993]
[1752225334924,0.3402,118020.0,118000.0,0.39369993]
[1752225335271,0.36146495,118020.0,118000.0,0.39369993]
[1752225335473,0.36146495,118020.0,118010.0,0.12912]
[1752225335650,0.36358495,118020.0,118010.0,0.21454993]
[1752225336786,0.38788495,118020.0,118010.0,0.21454993]
[1752225337192,0.36558495,118020.0,118010.0,0.21454993]
[1752225337605,0.36348495,118020.0,118010.0,0.21650993]
[1752225337804,0.36136495,118020.0,118010.0,0.21650993]
[1752225337969,0.36136495,118020.0,118010.0,0.24137993]
[1752225338167,0.0032,118020.0,118010.0,0.26317993]
[1752225339223,0.0012,118020.0,118010.0,0.26317993]
[1752225339397,0.0012,118020.0,118010.0,0.26417993]
[1752225339608,0.0002,118020.0,118010.0,0.26417993]
[1752225339984,0.0002,118020.0,118010.0,0.26517993]
[1752225343183,0.01793854,118030.0,118020.0,0.0434]
[1752225343375,0.01793854,118030.0,118020.0,0.13375993]
[1752225343779,0.0002,118030.0,118020.0,0.13375993]
[1752225345473,0.0002,118030.0,118020.0,0.13587821]
[1752225346255,0.0002,118030.0,118020.0,0.13687821]
[1752225347270,0.0002,118030.0,118020.0,0.13475993]
[1752225348343,0.0002,118030.0,118020.0,0.21064522]
[1752225348769,0.0002,118030.0,118020.0,0.22862064]
[1752225348986,0.0002,118030.0,118020.0,0.22962064]
[1752225349188,0.0002,118030.0,118020.0,0.22862064]
[1752225349517,0.0002,118030.0,118020.0,0.23062064]
[1752225350172,0.0002,118030.0,118020.0,0.36078064]
[1752225353263,0.0002,118040.0,118030.0,0.0443]
[1752225353473,0.0002,118040.0,118030.0,0.13470993]
[1752225358320,0.0002,118040.0,118030.0,0.21059522]
[1752225359656,0.0002,118040.0,118030.0,0.29641522]
[1752225360025,0.00229,118040.0,118030.0,0.16332522]
[1752225360227,0.00229,118040.0,118030.0,0.29344522]
[1752225360436,0.00229,118040.0,118030.0,0.16332522]
[1752225360616,0.05016,118040.0,118030.0,0.29340522]
[1752225361018,0.05016,118040.0,118030.0,0.08542993]
[1752225361181,0.05016,118040.0,118030.0,0.21550993]
[1752225362502,0.05016,118040.0,118030.0,0.08542993]
[1752225362738,0.05016,118040.0,118030.0,0.21550993]
[1752225363931,0.05016,118040.0,118030.0,0.08542993]
[1752225363932,0.39016,118040.0,118030.0,0.08542993]
[1752225364061,0.39016,118040.0,118030.0,0.13004]
[1752225365257,0.34546,118040.0,118010.0,0.07928529]
[1752225365458,0.04747,118030.0,118020.0,0.21550993]
[1752225365673,0.04956,118030.0,118020.0,0.21550993]
[1752225367438,0.04956,118030.0,118020.0,0.29339522]
[1752225368253,0.04956,118030.0,118020.0,0.29439522]
[1752225369258,0.04956,118030.0,118020.0,0.29640522]
[1752225370302,0.02776,118030.0,118020.0,0.29640522]
[1752225374094,0.02776,118030.0,118020.0,0.29523109]
[1752225375408,0.00526,118030.0,118020.0,0.29523109]
[1752225376368,0.00526,118030.0,118020.0,0.32598617]
[1752225379154,0.38657,118040.0,118020.0,0.35082617]
[1752225379361,0.38757,118040.0,118030.0,0.07581129]
[1752225379559,0.38966,118040.0,118030.0,0.07581129]
[1752225380118,0.38966,118040.0,118020.0,0.32397617]
[1752225380321,0.38966,118040.0,118030.0,0.07580917]
[1752225380908,0.38966,118040.0,118030.0,0.20572917]
[1752225382327,0.3402,118040.0,118030.0,0.2931691]
[1752225382532,0.076978,118050.0,118030.0,0.22049993]
[1752225382533,0.05157,118050.0,118030.0,0.22049993]
[1752225382758,0.05157,118050.0,118040.0,0.07577993]
[1752225382920,0.05366,118050.0,118040.0,0.07577993]
[1752225383132,0.0052,118050.0,118040.0,0.16635986]
[1752225383330,0.0052,118050.0,118040.0,0.18845986]
[1752225383775,0.0052,118050.0,118040.0,0.16635986]
[1752225384159,0.0052,118050.0,118040.0,0.16321986]
[1752225384388,0.0062,118050.0,118040.0,0.20803778]
[1752225384574,0.0062,118050.0,118040.0,0.20905986]
[1752225386907,0.0062,118050.0,118040.0,0.13327993]
[1752225387795,0.0062,118050.0,118040.0,0.13539785]
[1752225388197,0.0062,118050.0,118040.0,0.13504785]
[1752225389048,0.0062,118050.0,118040.0,0.13292993]
[1752225389899,0.0062,118050.0,118040.0,0.13504785]
[1752225390335,0.0062,118050.0,118040.0,0.21067906]
[1752225390506,0.0062,118050.0,118040.0,0.15835414]
[1752225390774,0.0062,118050.0,118040.0,0.16047206]
[1752225391208,0.0052,118050.0,118040.0,0.15835414]
[1752225391709,0.0052,118050.0,118040.0,0.16035414]
[1752225392105,0.0052,118050.0,118040.0,0.16135414]
[1752225392349,0.0052,118050.0,118040.0,0.15835414]
[1752225392558,0.0052,118050.0,118040.0,0.16347206]
[1752225392767,0.00076687,118050.0,118040.0,0.16747206]
[1752225393689,0.00076687,118050.0,118040.0,0.16535414]
[1752225394353,0.0002,118070.0,118050.0,0.045]
[1752225394620,0.0002,118070.0,118060.0,0.34894993]
[1752225394857,0.0002,118070.0,118060.0,0.35099993]
[1752225395263,0.00325,118070.0,118060.0,0.35099993]
[1752225395875,0.00425,118070.0,118060.0,0.35099993]
[1752225398470,0.0012,118070.0,118060.0,0.35099993]
[1752225400812,0.00621,118070.0,118060.0,0.35099993]
[1752225401986,0.0012,118070.0,118060.0,0.39584993]
[1752225402453,0.0012,118070.0,118060.0,0.39269993]
[1752225402647,0.00316,118070.0,118060.0,0.37179993]
[1752225402871,0.00621,118070.0,118060.0,0.35099993]
[1752225404318,0.00621,118070.0,118060.0,0.35199993]
[1752225405260,0.0012,118070.0,118060.0,0.35199993]
[1752225405468,0.0012,118070.0,118060.0,0.39589993]
[1752225405991,0.0012,118070.0,118060.0,0.35199993]
[1752225406202,0.00621,118070.0,118060.0,0.35199993]
[1752225407806,0.00316,118070.0,118060.0,0.35199993]
[1752225410628,0.00621,118070.0,118060.0,0.35199993]
[1752225410782,0.00621,118070.0,118060.0,0.08847993]
[1752225410981,0.00621,118070.0,118060.0,0.21995993]
[1752225411183,0.04771,118070.0,118060.0,0.21790993]
[1752225411848,0.00621,118070.0,118060.0,0.21790993]
[1752225412263,0.00621,118070.0,118060.0,0.21995993]
[1752225414215,0.00621,118070.0,118060.0,0.26285993]
[1752225414216,0.0012,118070.0,118060.0,0.26285993]
[1752225414422,0.0012,118070.0,118060.0,0.26600993]
[1752225414623,0.0012,118070.0,118060.0,0.26285993]
[1752225415200,0.0012,118070.0,118060.0,0.24225993]
[1752225415458,0.0012,118070.0,118060.0,0.21995993]
[1752225415918,0.04655,118080.0,118060.0,0.21995993]
[1752225416764,0.00303,118070.0,118060.0,0.26155993]
[1752225416980,0.0002,118080.0,118060.0,0.24015993]
[1752225417193,0.04603,118080.0,118060.0,0.21995993]
[1752225417600,0.04603,118080.0,118060.0,0.21895993]
[1752225417783,0.04603,118080.0,118060.0,0.21995993]
[1752225418422,0.04603,118080.0,118060.0,0.21895993]
[1752225418817,0.00323,118080.0,118060.0,0.26484993]
[1752225419162,0.00323,118080.0,118060.0,0.26185993]
[1752225419362,0.04683,118080.0,118060.0,0.34604363]
[1752225419568,0.04683,118080.0,118060.0,0.34704363]
[1752225419767,0.04683,118080.0,118060.0,0.32584363]
[1752225420201,0.04683,118080.0,118070.0,0.07583661]
[1752225420398,0.04895,118080.0,118070.0,0.16126654]
[1752225420855,0.38895,118080.0,118070.0,0.16126654]
[1752225421247,0.37903369,118080.0,118070.0,0.16126654]
[1752225421451,0.37903369,118080.0,118070.0,0.19131363]
[1752225422205,0.01615276,118090.0,118070.0,0.19131363]
[1752225422206,0.0002,118090.0,118080.0,0.0447]
[1752225422340,0.0002,118090.0,118080.0,0.39795993]
[1752225422545,0.0002,118150.0,118080.0,0.39795993]
[1752225422546,0.73945159,118170.0,118150.0,0.203209]
[1752225422745,0.12110483,118160.0,118150.0,0.203209]
[1752225422947,0.42774993,118160.0,118150.0,0.203209]
[1752225423170,0.45313993,118160.0,118150.0,0.203209]
[1752225423348,0.11616993,118160.0,118150.0,0.203209]
[1752225423554,0.12463238,118160.0,118150.0,0.203209]
[1752225423794,0.11616993,118160.0,118150.0,0.466049]
[1752225424145,0.10682939,118160.0,118150.0,0.466049]
[1752225424345,0.04339946,118160.0,118150.0,0.466049]
[1752225424464,0.38339946,118160.0,118150.0,0.466049]
[1752225424665,0.04339946,118160.0,118150.0,0.466049]
[1752225425106,0.39039946,118160.0,118150.0,0.466049]
[1752225425309,0.05039946,118160.0,118150.0,0.466049]
[1752225425509,0.07179946,118160.0,118150.0,0.466049]
[1752225425887,0.41179946,118160.0,118150.0,0.466049]
[1752225426095,0.42634031,118160.0,118150.0,0.466049]
[1752225427047,0.07934031,118160.0,118150.0,0.466049]
[1752225427409,0.47934031,118160.0,118150.0,0.466049]
[1752225427618,0.81934031,118160.0,118150.0,0.466049]
[1752225428610,0.82334031,118160.0,118150.0,0.466049]
[1752225430929,0.42334031,118160.0,118150.0,0.466049]
[1752225433251,0.43180276,118160.0,118150.0,0.466209]
[1752225433489,0.0412,118150.0,118140.0,0.26304]
[1752225433704,0.04635,118150.0,118140.0,0.26316]
[1752225433919,0.44635,118150.0,118140.0,0.26316]
[1752225434736,0.37504085,118140.0,118120.0,0.02336395]
[1752225434938,0.37504085,118140.0,118120.0,0.10879388]
[1752225435119,0.37807085,118140.0,118120.0,0.10879388]
[1752225435993,0.37807085,118140.0,118130.0,0.26336]
[1752225436195,0.38019085,118140.0,118130.0,0.26336]
[1752225436695,0.38010853,118140.0,118130.0,0.26336]
[1752225438003,0.38110853,118140.0,118130.0,0.26336]
[1752225439441,0.40290853,118140.0,118130.0,0.26336]
[1752225440431,0.38110853,118140.0,118130.0,0.26336]
[1752225443972,0.40310853,118140.0,118130.0,0.26336]
[1752225452777,0.38110853,118140.0,118130.0,0.26336]
[1752225452914,0.38110853,118140.0,118130.0,0.33906976]
[1752225457483,0.36060853,118140.0,118130.0,0.33906976]
[1752225459905,0.36060853,118140.0,118130.0,0.36175976]
[1752225460118,0.35545853,118140.0,118130.0,0.38604976]
[1752225460715,0.001,118140.0,118130.0,0.47147969]
[1752225460916,0.001,118140.0,118130.0,0.39576993]
[1752225461689,0.75945946,118160.0,118130.0,0.39576993]
[1752225461907,0.35624946,118160.0,118150.0,0.0206]
[1752225462108,0.01624946,118160.0,118150.0,0.39564993]
[1752225462344,0.01624946,118160.0,118150.0,0.47135566]
[1752225462777,0.01624946,118160.0,118150.0,0.20811566]
[1752225462985,0.02158946,118160.0,118150.0,0.09839573]
[1752225463218,0.04308946,118160.0,118150.0,0.07570573]
[1752225463424,0.05763031,118160.0,118150.0,0.13184]
[1752225463660,0.01454085,118150.0,118140.0,0.07570573]
[1752225463919,0.01667085,118150.0,118140.0,0.07779573]
[1752225464143,0.01667085,118150.0,118140.0,0.20971573]
[1752225464344,0.01667085,118150.0,118140.0,0.07779573]
[1752225464499,0.01667085,118150.0,118140.0,0.20865299]
[1752225464907,0.01667085,118150.0,118140.0,0.20965299]
[1752225466300,0.01988085,118150.0,118140.0,0.21065299]
[1752225469828,0.01667085,118150.0,118140.0,0.21065299]
[1752225472791,0.75667085,118150.0,118140.0,0.21065299]
[1752225472985,0.35667085,118150.0,118140.0,0.21065299]
[1752225475025,0.35454085,118150.0,118140.0,0.25777299]
[1752225475674,0.35454085,118150.0,118140.0,0.12585299]
[1752225476021,0.35454085,118150.0,118140.0,0.25773299]
[1752225476847,0.35454085,118150.0,118140.0,0.25781299]
[1752225477644,0.35454085,118150.0,118140.0,0.25797299]
[1752225477990,0.35454085,118150.0,118140.0,0.25793299]
[1752225478298,0.38123085,118150.0,118140.0,0.20872299]
[1752225478503,0.38123085,118150.0,118140.0,0.13408]
[1752225478978,0.35973085,118150.0,118140.0,0.002]
[1752225479182,0.40303085,118150.0,118140.0,0.002]
[1752225481017,0.53527085,118150.0,118140.0,0.002]
[1752225481637,0.62916395,118150.0,118140.0,0.002]
[1752225481844,0.63762726,118150.0,118140.0,0.002]
[1752225482038,0.62070078,118150.0,118140.0,0.002]
[1752225482764,0.62070078,118150.0,118140.0,0.001]
[1752225483112,1.02070078,118150.0,118140.0,0.001]
[1752225483311,0.01454085,118130.0,118120.0,0.22776299]
[1752225483689,0.01454085,118130.0,118120.0,0.25499299]
[1752225485955,0.01454085,118130.0,118120.0,0.12267299]
[1752225486185,0.01454085,118130.0,118120.0,0.25511299]
[1752225491311,0.01662085,118130.0,118120.0,0.25511299]
[1752225491480,0.01662085,118130.0,118120.0,0.23311299]
[1752225492115,0.01662085,118130.0,118120.0,0.20909299]
[1752225492116,0.01973085,118130.0,118120.0,0.20909299]
[1752225492527,0.01662085,118130.0,118120.0,0.20909299]
[1752225492729,0.01662085,118130.0,118120.0,0.23039299]
[1752225494422,0.01662085,118130.0,118120.0,0.23361299]
[1752225494844,0.01454085,118130.0,118120.0,0.25451299]
[1752225495452,0.04153085,118130.0,118120.0,0.07464299]
[1752225495775,0.06393085,118130.0,118120.0,0.13224]
[1752225496834,0.06393085,118130.0,118110.0,0.13228]
[1752225497030,0.01454085,118110.0,118100.0,0.12126299]
[1752225497235,0.01454085,118110.0,118100.0,0.25555299]
[1752225497999,0.01354085,118110.0,118100.0,0.23365299]
[1752225498164,0.01354085,118110.0,118100.0,0.25555299]
[1752225498368,0.02710648,118110.0,118100.0,0.25555299]
[1752225498796,0.02710648,118110.0,118100.0,0.25755299]
[1752225499792,0.02710648,118110.0,118100.0,0.26055299]
[1752225501458,0.39349648,118110.0,118100.0,0.07964299]
[1752225501604,0.41619648,118110.0,118100.0,0.07964299]
[1752225502225,0.41619648,118110.0,118100.0,0.21196299]
[1752225502625,0.41619648,118110.0,118100.0,0.20996299]
[1752225502831,0.50162641,118110.0,118100.0,0.003]
[1752225502998,0.65930541,118110.0,118090.0,0.07464299]
[1752225503208,0.00311,118100.0,118090.0,0.20692299]
[1752225503403,0.00416,118100.0,118090.0,0.20692299]
[1752225504009,0.00205,118100.0,118090.0,0.20894299]
[1752225504786,0.00205,118100.0,118090.0,0.21194299]
[1752225506441,0.00105,118100.0,118090.0,0.21194299]
[1752225506637,0.40398085,118100.0,118090.0,0.07764299]
[1752225506904,0.38118085,118100.0,118090.0,0.20992299]
[1752225507092,0.35559085,118100.0,118090.0,0.21503299]
[1752225507353,0.34567674,118100.0,118090.0,0.21503299]
[1752225507522,0.34,118100.0,118090.0,0.21503299]
[1752225507892,0.34,118100.0,118090.0,0.13747]
[1752225508122,0.34,118100.0,118090.0,0.00511]
[1752225508494,0.34,118100.0,118090.0,0.13747]
[1752225508647,0.34,118100.0,118090.0,0.00511]
[1752225508847,0.34,118100.0,118090.0,0.13747]
[1752225509246,0.341,118100.0,118090.0,0.13747]
[1752225509449,0.35554085,118100.0,118090.0,0.13747]
[1752225509668,0.35554085,118100.0,118090.0,0.13647]
[1752225510968,0.35554085,118100.0,118090.0,0.13847]
[1752225511347,0.35554085,118100.0,118090.0,0.18197]
[1752225511553,0.35554085,118100.0,118090.0,0.17997]
[1752225511979,0.35554085,118100.0,118090.0,0.15847]
[1752225512216,0.35554085,118100.0,118090.0,0.00102]
[1752225512652,0.35554085,118100.0,118090.0,0.13334]
[1752225514594,0.35554085,118100.0,118090.0,0.13320379]
[1752225514823,0.35554085,118100.0,118090.0,0.00088379]
[1752225514949,0.35554085,118100.0,118090.0,0.13316379]
[1752225515780,0.48547078,118100.0,118070.0,0.24742]
[1752225515981,0.48547078,118100.0,118070.0,0.25051]
[1752225515982,0.01454085,118080.0,118070.0,0.25051]
[1752225516185,0.01454085,118080.0,118070.0,0.38485]
[1752225517056,0.01454085,118080.0,118070.0,0.38685]
[1752225517260,0.01454085,118080.0,118070.0,0.38485]
[1752225517502,0.78541078,118100.0,118070.0,0.38885]
[1752225518487,0.78541078,118100.0,118070.0,0.38685]
[1752225519302,0.01454085,118090.0,118070.0,0.38685]
[1752225519747,0.01454085,118090.0,118070.0,0.38485]
[1752225519940,0.01454085,118090.0,118070.0,0.38685]
[1752225520090,0.01454085,118090.0,118070.0,0.38885]
[1752225520304,0.01454085,118090.0,118070.0,0.38685]
[1752225520696,0.01454085,118090.0,118070.0,0.38885]
[1752225520910,0.01454085,118090.0,118070.0,0.38685]
[1752225521570,0.01454085,118090.0,118070.0,0.38885]
[1752225522154,0.72738263,118100.0,118070.0,0.38885]
[1752225522563,0.55736093,118100.0,118070.0,0.38885]
[1752225523021,0.55736093,118100.0,118070.0,0.38485]
[1752225523196,0.55736093,118100.0,118070.0,0.38685]
[1752225523398,0.55736093,118100.0,118070.0,0.18393]
[1752225524427,0.01454085,118090.0,118070.0,0.18393]
[1752225524638,0.01454085,118090.0,118070.0,0.18593]
[1752225525538,0.01454085,118090.0,118070.0,0.18193]
[1752225525730,0.35454085,118090.0,118070.0,0.18393]
[1752225525950,0.35454085,118090.0,118070.0,0.18593]
[1752225527243,0.37994185,118090.0,118070.0,0.18593]
[1752225538375,0.37994185,118090.0,118080.0,0.0226]
[1752225538511,0.38194185,118090.0,118080.0,0.0226]
[1752225538884,0.38194185,118090.0,118080.0,0.02458]
[1752225539841,0.38194185,118090.0,118080.0,0.02558]
[1752225540022,0.38194185,118090.0,118080.0,0.02658]
[1752225540709,0.38194185,118090.0,118080.0,0.02974]
[1752225541253,0.38194185,118090.0,118080.0,0.1357]
[1752225547595,0.38194185,118090.0,118080.0,0.1572]
[1752225551135,0.38506185,118090.0,118080.0,0.002]
[1752225551312,0.03574085,118080.0,118070.0,0.2373237]
[1752225551518,0.48437078,118080.0,118070.0,0.13144]
[1752225551757,0.48437078,118080.0,118050.0,0.30340613]
[1752225551758,0.48749078,118080.0,118050.0,0.30340613]
[1752225551921,0.48749078,118080.0,118060.0,0.13152]
[1752225552637,0.025405,118070.0,118060.0,0.13152]
[1752225552792,0.027405,118070.0,118060.0,0.13152]
[1752225553334,0.027405,118070.0,118060.0,0.13252]
[1752225553751,0.027405,118070.0,118060.0,0.13248]
[1752225553956,0.027405,118070.0,118060.0,0.13148]
[1752225554159,0.027405,118070.0,118050.0,0.1521437]
[1752225554366,0.027405,118070.0,118060.0,0.13148]
[1752225554775,0.027405,118070.0,118060.0,0.15892]
[1752225555200,0.025405,118070.0,118060.0,0.17962]
[1752225556669,0.01548879,118070.0,118060.0,0.26504993]
[1752225556873,0.05993073,118110.0,118090.0,0.0223]